[Event "Titled Tuesday Blitz May 30 Early 2023"]
[White "Andreev, Konstantin"]
[Black "Guevara Sanchez, Erick Marvin"]
[WhiteFideId "24239305"]
[BlackFideId "6700136"]
[WhiteElo "2106"]
[BlackElo "2040"]
[Result "1-0"]
[Round "06"]
[TimeControl "180+2"]
[Date "2023.05.30"]
[WhiteClock "0:00:08"]
[BlackClock "0:00:03"]

1. e4 {[%clk 0:02:16]}  c5 {[%clk 0:02:59]} 2. Nf3 {[%clk 0:02:14]}  Nc6 {[%clk 0:02:57]} 3. Nc3 {[%clk 0:02:14]}  Nf6 {[%clk 0:02:57]} 4. d4 {[%clk 0:02:09]}  cxd4 {[%clk 0:02:56]} 5. Nxd4 {[%clk 0:02:10]}  e5 {[%clk 0:02:56]} 6. Ndb5 {[%clk 0:02:09]}  d6 {[%clk 0:02:56]} 7. Bg5 {[%clk 0:02:07]}  a6 {[%clk 0:02:56]} 8. Na3 {[%clk 0:02:01]}  b5 {[%clk 0:02:56]} 9. Nd5 {[%clk 0:02:00]}  Be7 {[%clk 0:02:56]} 10. Bxf6 {[%clk 0:01:59]}  Bxf6 {[%clk 0:02:57]} 11. c3 {[%clk 0:01:59]}  Bg5 {[%clk 0:02:56]} 12. Nc2 {[%clk 0:01:55]}  O-O {[%clk 0:02:54]} 13. h4 {[%clk 0:01:48]}  Bh6 {[%clk 0:02:51]} 14. g3 {[%clk 0:01:47]}  Ne7 {[%clk 0:02:46]} 15. Nce3 {[%clk 0:01:44]}  Bxe3 {[%clk 0:02:42]} 16. Nxe3 {[%clk 0:01:44]}  Bb7 {[%clk 0:02:42]} 17. Bg2 {[%clk 0:01:44]}  f5 {[%clk 0:02:39]} 18. Nd5 {[%clk 0:01:12]}  f4 {[%clk 0:02:08]} 19. Qg4 {[%clk 0:00:59]}  Nxd5 {[%clk 0:01:33]} 20. exd5 {[%clk 0:00:57]}  f3 {[%clk 0:01:30]} 21. Bxf3 {[%clk 0:00:53]}  Qf6 {[%clk 0:01:30]} 22. Ke2 {[%clk 0:00:37]}  e4 {[%clk 0:01:29]} 23. Bxe4 {[%clk 0:00:34]}  Rae8 {[%clk 0:01:29]} 24. f3 {[%clk 0:00:20]}  Bxd5 {[%clk 0:01:26]} 25. Kd3 {[%clk 0:00:20]}  Rxe4 {[%clk 0:00:50]} 26. fxe4 {[%clk 0:00:21]}  Bc4+ {[%clk 0:00:50]} 27. Kd2 {[%clk 0:00:16]}  Qf2+ {[%clk 0:00:49]} 28. Kc1 {[%clk 0:00:16]}  Qe3+ {[%clk 0:00:47]} 29. Kd1 {[%clk 0:00:10]}  Qd3+ {[%clk 0:00:22]} 30. Kc1 {[%clk 0:00:08]}  Rf1+ {[%clk 0:00:21]} 31. Rxf1 {[%clk 0:00:08]}  Qxf1+ {[%clk 0:00:21]} 32. Qd1 {[%clk 0:00:08]}  Qf2 {[%clk 0:00:20]} 33. b3 {[%clk 0:00:06]}  Qe3+ {[%clk 0:00:18]} 34. Qd2 {[%clk 0:00:07]}  Qg1+ {[%clk 0:00:17]} 35. Kb2 {[%clk 0:00:07]}  Qxg3 {[%clk 0:00:16]} 36. bxc4 {[%clk 0:00:06]}  bxc4 {[%clk 0:00:16]} 37. Qd5+ {[%clk 0:00:07]}  Kf8 {[%clk 0:00:14]} 38. Rd1 {[%clk 0:00:08]}  Ke7 {[%clk 0:00:14]} 39. e5 {[%clk 0:00:07]}  Qf2+ {[%clk 0:00:13]} 40. Rd2 {[%clk 0:00:08]}  Qb6+ {[%clk 0:00:13]} 41. Kc2 {[%clk 0:00:08]}  dxe5 {[%clk 0:00:11]} 42. Qd7+ {[%clk 0:00:07]}  Kf8 {[%clk 0:00:09]} 43. Qd8+ {[%clk 0:00:08]}  Kf7 {[%clk 0:00:03]} 44. Qxb6 {[%clk 0:00:08]} 1-0


[Site "https://www.chess.com"]

[Event "Titled Tuesday Blitz May 30 Early 2023"]
[White "Gurevich, Dmitry"]
[Black "Horokoskii"]
[WhiteFideId "2000407"]
[WhiteElo "2506"]
[BlackElo "2117"]
[Result "1-0"]
[Round "06"]
[TimeControl "180+2"]
[Date "2023.05.30"]
[WhiteClock "0:00:52"]
[BlackClock "0:00:00"]

1. d4 {[%clk 0:03:00]}  Nf6 {[%clk 0:02:38]} 2. c4 {[%clk 0:02:58]}  c5 {[%clk 0:02:37]} 3. Nf3 {[%clk 0:02:56]}  g6 {[%clk 0:02:36]} 4. Nc3 {[%clk 0:02:54]}  cxd4 {[%clk 0:02:36]} 5. Nxd4 {[%clk 0:02:53]}  Bg7 {[%clk 0:02:37]} 6. e4 {[%clk 0:02:50]}  d6 {[%clk 0:02:35]} 7. Be2 {[%clk 0:02:49]}  O-O {[%clk 0:02:35]} 8. Be3 {[%clk 0:02:48]}  Nc6 {[%clk 0:02:35]} 9. Nc2 {[%clk 0:02:48]}  a6 {[%clk 0:02:35]} 10. O-O {[%clk 0:02:47]}  b6 {[%clk 0:02:33]} 11. Rc1 {[%clk 0:02:47]}  Bb7 {[%clk 0:02:33]} 12. f3 {[%clk 0:02:46]}  Rc8 {[%clk 0:02:33]} 13. Qd2 {[%clk 0:02:47]}  Ne5 {[%clk 0:02:32]} 14. b3 {[%clk 0:02:47]}  h5 {[%clk 0:02:29]} 15. Rfd1 {[%clk 0:02:46]}  Qc7 {[%clk 0:02:26]} 16. Nb4 {[%clk 0:02:44]}  Rfd8 {[%clk 0:02:17]} 17. Bf1 {[%clk 0:02:44]}  a5 {[%clk 0:02:09]} 18. Nb5 {[%clk 0:02:36]}  Qb8 {[%clk 0:02:00]} 19. Nd5 {[%clk 0:02:21]}  Bxd5 {[%clk 0:01:58]} 20. cxd5 {[%clk 0:02:17]}  Rxc1 {[%clk 0:01:48]} 21. Rxc1 {[%clk 0:02:16]}  Ned7 {[%clk 0:01:46]} 22. Nd4 {[%clk 0:02:10]}  Nc5 {[%clk 0:01:18]} 23. Nc6 {[%clk 0:02:09]}  Qc7 {[%clk 0:01:18]} 24. b4 {[%clk 0:02:01]}  axb4 {[%clk 0:01:14]} 25. Nxd8 {[%clk 0:02:00]}  Qxd8 {[%clk 0:01:13]} 26. Qxb4 {[%clk 0:01:59]}  Nfd7 {[%clk 0:01:12]} 27. h3 {[%clk 0:01:52]}  Qa8 {[%clk 0:01:09]} 28. a3 {[%clk 0:01:46]}  Qa7 {[%clk 0:00:49]} 29. Rd1 {[%clk 0:01:45]}  Be5 {[%clk 0:00:47]} 30. Bb5 {[%clk 0:01:43]}  Nf6 {[%clk 0:00:36]} 31. Rb1 {[%clk 0:01:39]}  Nfd7 {[%clk 0:00:27]} 32. a4 {[%clk 0:01:38]}  f5 {[%clk 0:00:17]} 33. exf5 {[%clk 0:01:33]}  gxf5 {[%clk 0:00:17]} 34. Qh4 {[%clk 0:01:32]}  f4 {[%clk 0:00:15]} 35. Bxf4 {[%clk 0:01:29]}  Bxf4 {[%clk 0:00:08]} 36. Qxf4 {[%clk 0:01:28]}  Nf6 {[%clk 0:00:09]} 37. Qf5 {[%clk 0:01:23]}  Qa5 {[%clk 0:00:07]} 38. Qc2 {[%clk 0:01:14]}  Kg7 {[%clk 0:00:04]} 39. Qb2 {[%clk 0:01:08]}  Qa8 {[%clk 0:00:04]} 40. Re1 {[%clk 0:01:04]}  Qxd5 {[%clk 0:00:04]} 41. Rxe7+ {[%clk 0:01:03]}  Kg6 {[%clk 0:00:05]} 42. Qc2+ {[%clk 0:01:00]}  Kh6 {[%clk 0:00:04]} 43. Re2 {[%clk 0:00:54]}  Qg5 {[%clk 0:00:00]} 44. Qd2 {[%clk 0:00:52]} 1-0


[Site "https://www.chess.com"]

[Event "Titled Tuesday Blitz May 30 Early 2023"]
[White "Brod, Manfred"]
[Black "Koridze, Lile"]
[WhiteFideId "1602110"]
[BlackFideId "13612514"]
[WhiteElo "2152"]
[BlackElo "2047"]
[Result "1-0"]
[Round "06"]
[TimeControl "180+2"]
[Date "2023.05.30"]
[WhiteClock "0:01:49"]
[BlackClock "0:01:55"]

1. e4 {[%clk 0:02:44]}  c5 {[%clk 0:02:59]} 2. Nf3 {[%clk 0:02:44]}  d6 {[%clk 0:02:59]} 3. d4 {[%clk 0:02:42]}  cxd4 {[%clk 0:02:59]} 4. Nxd4 {[%clk 0:02:43]}  Nf6 {[%clk 0:02:59]} 5. Nc3 {[%clk 0:02:43]}  a6 {[%clk 0:03:00]} 6. Be2 {[%clk 0:02:43]}  e5 {[%clk 0:02:59]} 7. Nb3 {[%clk 0:02:44]}  Be7 {[%clk 0:02:59]} 8. Be3 {[%clk 0:02:44]}  O-O {[%clk 0:02:57]} 9. g4 {[%clk 0:02:43]}  b5 {[%clk 0:02:56]} 10. g5 {[%clk 0:02:35]}  Ne8 {[%clk 0:02:54]} 11. h4 {[%clk 0:02:35]}  Bb7 {[%clk 0:02:52]} 12. Nd5 {[%clk 0:02:35]}  Nd7 {[%clk 0:02:51]} 13. Qd2 {[%clk 0:02:30]}  Nc5 {[%clk 0:02:49]} 14. Nxc5 {[%clk 0:02:25]}  dxc5 {[%clk 0:02:49]} 15. O-O-O {[%clk 0:02:25]}  Bd6 {[%clk 0:02:33]} 16. Rdg1 {[%clk 0:02:15]}  Rb8 {[%clk 0:02:09]} 17. h5 {[%clk 0:02:14]}  Nc7 {[%clk 0:02:07]} 18. Nf6+ {[%clk 0:02:00]}  gxf6 {[%clk 0:02:06]} 19. gxf6+ {[%clk 0:02:00]}  Kh8 {[%clk 0:02:07]} 20. Bh6 {[%clk 0:01:55]}  Qxf6 {[%clk 0:01:55]} 21. Bg7+ {[%clk 0:01:50]}  Qxg7 {[%clk 0:01:55]} 22. Rxg7 {[%clk 0:01:50]}  Kxg7 {[%clk 0:01:56]} 23. Qg5+ {[%clk 0:01:49]}  Kh8 {[%clk 0:01:55]} 24. Qf6+ {[%clk 0:01:49]} 1-0


[Site "https://www.chess.com"]

[Event "Titled Tuesday Blitz May 30 Early 2023"]
[White "Maluco_do_Natal_00"]
[Black "Kohler, Aran"]
[BlackFideId "1002856"]
[WhiteElo "2031"]
[BlackElo "2349"]
[Result "1-0"]
[Round "06"]
[TimeControl "180+2"]
[Date "2023.05.30"]
[WhiteClock "0:00:05"]
[BlackClock "0:00:00"]

1. e4 {[%clk 0:02:45]}  c6 {[%clk 0:03:00]} 2. d4 {[%clk 0:02:45]}  d5 {[%clk 0:03:00]} 3. Nc3 {[%clk 0:02:45]}  dxe4 {[%clk 0:03:00]} 4. Nxe4 {[%clk 0:02:46]}  Bf5 {[%clk 0:03:00]} 5. Ng3 {[%clk 0:02:46]}  Bg6 {[%clk 0:03:00]} 6. h4 {[%clk 0:02:46]}  h6 {[%clk 0:03:00]} 7. h5 {[%clk 0:02:47]}  Bh7 {[%clk 0:03:00]} 8. Nf3 {[%clk 0:02:47]}  Nd7 {[%clk 0:03:00]} 9. Bd3 {[%clk 0:02:48]}  Ngf6 {[%clk 0:03:00]} 10. Bxh7 {[%clk 0:02:44]}  Nxh7 {[%clk 0:03:01]} 11. Qe2 {[%clk 0:02:38]}  e6 {[%clk 0:03:01]} 12. Bd2 {[%clk 0:02:33]}  a5 {[%clk 0:03:00]} 13. O-O-O {[%clk 0:02:28]}  a4 {[%clk 0:02:59]} 14. a3 {[%clk 0:02:10]}  Be7 {[%clk 0:02:58]} 15. Ne5 {[%clk 0:02:10]}  O-O {[%clk 0:02:51]} 16. Ne4 {[%clk 0:02:01]}  Nxe5 {[%clk 0:02:43]} 17. dxe5 {[%clk 0:01:58]}  Qd5 {[%clk 0:02:39]} 18. Bxh6 {[%clk 0:01:07]}  Qxe5 {[%clk 0:02:33]} 19. Bd2 {[%clk 0:00:54]}  f5 {[%clk 0:01:31]} 20. Nc3 {[%clk 0:00:47]}  Qxe2 {[%clk 0:01:23]} 21. Nxe2 {[%clk 0:00:47]}  e5 {[%clk 0:00:57]} 22. Bc3 {[%clk 0:00:27]}  Bf6 {[%clk 0:00:57]} 23. Ng3 {[%clk 0:00:27]}  e4 {[%clk 0:00:48]} 24. Kb1 {[%clk 0:00:25]}  Bxc3 {[%clk 0:00:48]} 25. bxc3 {[%clk 0:00:25]}  Ra5 {[%clk 0:00:45]} 26. Rd7 {[%clk 0:00:20]}  Rb5+ {[%clk 0:00:44]} 27. Kc1 {[%clk 0:00:20]}  Rf7 {[%clk 0:00:45]} 28. Rhd1 {[%clk 0:00:19]}  Nf8 {[%clk 0:00:43]} 29. Rd8 {[%clk 0:00:19]}  Kh7 {[%clk 0:00:42]} 30. Ne2 {[%clk 0:00:17]}  f4 {[%clk 0:00:27]} 31. R1d4 {[%clk 0:00:15]}  f3 {[%clk 0:00:24]} 32. gxf3 {[%clk 0:00:15]}  exf3 {[%clk 0:00:23]} 33. Nf4 {[%clk 0:00:14]}  Re7 {[%clk 0:00:19]} 34. Rxf8 {[%clk 0:00:12]}  Re1+ {[%clk 0:00:18]} 35. Kd2 {[%clk 0:00:12]}  Rbb1 {[%clk 0:00:18]} 36. c4 {[%clk 0:00:12]}  Rbd1+ {[%clk 0:00:12]} 37. Kc3 {[%clk 0:00:12]}  Rxd4 {[%clk 0:00:12]} 38. Kxd4 {[%clk 0:00:12]}  Ra1 {[%clk 0:00:10]} 39. Ng6 {[%clk 0:00:12]}  Kh6 {[%clk 0:00:10]} 40. Rh8+ {[%clk 0:00:12]}  Kg5 {[%clk 0:00:10]} 41. Ne5 {[%clk 0:00:10]}  Rxa3 {[%clk 0:00:10]} 42. Rh7 {[%clk 0:00:09]}  Kf6 {[%clk 0:00:10]} 43. Ng4+ {[%clk 0:00:08]}  Kf7 {[%clk 0:00:09]} 44. h6 {[%clk 0:00:08]}  Kg8 {[%clk 0:00:07]} 45. Rxg7+ {[%clk 0:00:08]}  Kf8 {[%clk 0:00:07]} 46. Nf6 {[%clk 0:00:08]}  Ra1 {[%clk 0:00:06]} 47. Rg8+ {[%clk 0:00:08]}  Kf7 {[%clk 0:00:05]} 48. h7 {[%clk 0:00:08]}  Rd1+ {[%clk 0:00:05]} 49. Kc3 {[%clk 0:00:08]}  Rh1 {[%clk 0:00:04]} 50. h8=Q {[%clk 0:00:06]}  Rxh8 {[%clk 0:00:04]} 51. Rxh8 {[%clk 0:00:06]}  Kxf6 {[%clk 0:00:05]} 52. Ra8 {[%clk 0:00:06]}  b5 {[%clk 0:00:05]} 53. cxb5 {[%clk 0:00:05]}  cxb5 {[%clk 0:00:06]} 54. Rb8 {[%clk 0:00:05]}  Ke5 {[%clk 0:00:02]} 55. Rxb5+ {[%clk 0:00:05]}  Ke4 {[%clk 0:00:00]} 56. Ra5 {[%clk 0:00:05]} 1-0


[Site "https://www.chess.com"]

[Event "Titled Tuesday Blitz May 30 Early 2023"]
[White "Sarkar, Justin"]
[Black "Osiecki, Stanislaw"]
[WhiteFideId "2010011"]
[BlackFideId "1102990"]
[WhiteElo "2168"]
[BlackElo "2088"]
[Result "1-0"]
[Round "06"]
[TimeControl "180+2"]
[Date "2023.05.30"]
[WhiteClock "0:00:46"]
[BlackClock "0:00:01"]

1. d4 {[%clk 0:02:54]}  Nf6 {[%clk 0:02:59]} 2. c4 {[%clk 0:02:52]}  g6 {[%clk 0:02:58]} 3. Nc3 {[%clk 0:02:50]}  Bg7 {[%clk 0:02:58]} 4. e4 {[%clk 0:02:48]}  d6 {[%clk 0:02:58]} 5. f3 {[%clk 0:02:39]}  O-O {[%clk 0:02:56]} 6. Nge2 {[%clk 0:02:37]}  e5 {[%clk 0:02:57]} 7. d5 {[%clk 0:02:29]}  a5 {[%clk 0:02:47]} 8. Be3 {[%clk 0:02:15]}  Na6 {[%clk 0:02:42]} 9. Qd2 {[%clk 0:02:08]}  Ne8 {[%clk 0:02:41]} 10. g4 {[%clk 0:02:03]}  b6 {[%clk 0:02:37]} 11. h4 {[%clk 0:02:00]}  f5 {[%clk 0:02:35]} 12. gxf5 {[%clk 0:01:36]}  gxf5 {[%clk 0:02:34]} 13. exf5 {[%clk 0:01:36]}  Bxf5 {[%clk 0:02:33]} 14. Ng3 {[%clk 0:01:35]}  Nc5 {[%clk 0:02:09]} 15. Nxf5 {[%clk 0:01:27]}  Rxf5 {[%clk 0:02:08]} 16. Be2 {[%clk 0:01:26]}  Kh8 {[%clk 0:02:00]} 17. O-O-O {[%clk 0:01:22]}  Nf6 {[%clk 0:01:51]} 18. Rdg1 {[%clk 0:01:18]}  Nh5 {[%clk 0:01:47]} 19. Rg5 {[%clk 0:01:08]}  Qd7 {[%clk 0:01:35]} 20. Bxc5 {[%clk 0:00:59]}  bxc5 {[%clk 0:01:33]} 21. Bd3 {[%clk 0:00:58]}  Rxg5 {[%clk 0:01:18]} 22. hxg5 {[%clk 0:00:58]}  Qf7 {[%clk 0:00:53]} 23. Kc2 {[%clk 0:00:58]}  Qxf3 {[%clk 0:00:26]} 24. Qh2 {[%clk 0:00:52]}  Rf8 {[%clk 0:00:11]} 25. Qxh5 {[%clk 0:00:51]}  Qxh5 {[%clk 0:00:08]} 26. Rxh5 {[%clk 0:00:50]}  Rf2+ {[%clk 0:00:08]} 27. Kb3 {[%clk 0:00:50]}  Rf3 {[%clk 0:00:08]} 28. Bxh7 {[%clk 0:00:47]}  e4 {[%clk 0:00:01]} 29. Bxe4+ {[%clk 0:00:46]} 1-0


[Site "https://www.chess.com"]

[Event "Titled Tuesday Blitz May 30 Early 2023"]
[White "Ziatdinov, Raset"]
[Black "Lohani, Sujana"]
[WhiteFideId "2015323"]
[BlackFideId "12311987"]
[WhiteElo "2220"]
[BlackElo "1718"]
[Result "0-1"]
[Round "06"]
[TimeControl "180+2"]
[Date "2023.05.30"]
[WhiteClock "0:01:13"]
[BlackClock "0:00:34"]

1. e4 {[%clk 0:03:00]}  g6 {[%clk 0:02:56]} 2. d4 {[%clk 0:03:00]}  Bg7 {[%clk 0:02:57]} 3. Be3 {[%clk 0:03:01]}  d6 {[%clk 0:02:57]} 4. Qd2 {[%clk 0:03:01]}  c6 {[%clk 0:02:49]} 5. Nc3 {[%clk 0:03:01]}  b5 {[%clk 0:02:49]} 6. a3 {[%clk 0:03:00]}  a5 {[%clk 0:02:45]} 7. Nge2 {[%clk 0:03:00]}  Bb7 {[%clk 0:02:38]} 8. f3 {[%clk 0:02:57]}  Nd7 {[%clk 0:02:37]} 9. g4 {[%clk 0:02:47]}  b4 {[%clk 0:02:37]} 10. axb4 {[%clk 0:02:47]}  axb4 {[%clk 0:02:37]} 11. Na4 {[%clk 0:02:41]}  c5 {[%clk 0:02:29]} 12. b3 {[%clk 0:02:35]}  cxd4 {[%clk 0:02:18]} 13. Bxd4 {[%clk 0:02:33]}  Ngf6 {[%clk 0:02:17]} 14. Ng3 {[%clk 0:02:27]}  O-O {[%clk 0:02:14]} 15. h4 {[%clk 0:02:19]}  Ne5 {[%clk 0:02:10]} 16. Be2 {[%clk 0:02:17]}  Nexg4 {[%clk 0:01:57]} 17. fxg4 {[%clk 0:02:10]}  Nxe4 {[%clk 0:01:45]} 18. Nxe4 {[%clk 0:02:06]}  Bxe4 {[%clk 0:01:44]} 19. Bxg7 {[%clk 0:02:06]}  Bxh1 {[%clk 0:01:32]} 20. Bxf8 {[%clk 0:02:06]}  Qxf8 {[%clk 0:01:32]} 21. O-O-O {[%clk 0:02:02]}  Bc6 {[%clk 0:01:22]} 22. Qxb4 {[%clk 0:01:59]}  Bxa4 {[%clk 0:01:09]} 23. bxa4 {[%clk 0:01:57]}  Qg7 {[%clk 0:01:09]} 24. Qd4 {[%clk 0:01:55]}  Qh6+ {[%clk 0:01:06]} 25. g5 {[%clk 0:01:55]}  Qf8 {[%clk 0:01:02]} 26. Bc4 {[%clk 0:01:54]}  e6 {[%clk 0:00:59]} 27. Qxd6 {[%clk 0:01:39]}  Qc8 {[%clk 0:00:53]} 28. Bb3 {[%clk 0:01:38]}  Qc3 {[%clk 0:00:52]} 29. Qd4 {[%clk 0:01:35]}  Qh3 {[%clk 0:00:39]} 30. Qc3 {[%clk 0:01:13]}  Qxc3 {[%clk 0:00:34]} 0-1


[Site "https://www.chess.com"]

[Event "Titled Tuesday Blitz May 30 Early 2023"]
[White "Sanchez, Robert"]
[Black "Zaichenko, Daria"]
[WhiteFideId "2034360"]
[BlackFideId "4197453"]
[WhiteElo "1825"]
[BlackElo "2039"]
[Result "0-1"]
[Round "06"]
[TimeControl "180+2"]
[Date "2023.05.30"]
[WhiteClock "0:00:49"]
[BlackClock "0:00:20"]

1. Nf3 {[%clk 0:03:00]}  d5 {[%clk 0:02:54]} 2. c4 {[%clk 0:03:00]}  e6 {[%clk 0:02:53]} 3. e3 {[%clk 0:03:00]}  Nf6 {[%clk 0:02:43]} 4. Nc3 {[%clk 0:03:00]}  c5 {[%clk 0:02:43]} 5. d4 {[%clk 0:03:00]}  Nc6 {[%clk 0:02:34]} 6. dxc5 {[%clk 0:02:55]}  Bxc5 {[%clk 0:02:33]} 7. Bd3 {[%clk 0:02:55]}  O-O {[%clk 0:02:27]} 8. O-O {[%clk 0:02:55]}  a6 {[%clk 0:02:12]} 9. Qe2 {[%clk 0:02:52]}  dxc4 {[%clk 0:02:10]} 10. Bxc4 {[%clk 0:02:52]}  b5 {[%clk 0:02:11]} 11. Bb3 {[%clk 0:02:52]}  Bb7 {[%clk 0:02:08]} 12. Rd1 {[%clk 0:02:52]}  Qb6 {[%clk 0:02:07]} 13. h3 {[%clk 0:02:46]}  Rfd8 {[%clk 0:02:06]} 14. e4 {[%clk 0:02:41]}  Nd4 {[%clk 0:01:58]} 15. Nxd4 {[%clk 0:02:39]}  Bxd4 {[%clk 0:01:57]} 16. e5 {[%clk 0:02:32]}  Nd7 {[%clk 0:01:52]} 17. Bg5 {[%clk 0:02:28]}  Rdc8 {[%clk 0:01:47]} 18. Rxd4 {[%clk 0:01:56]}  Qxd4 {[%clk 0:01:44]} 19. Rd1 {[%clk 0:01:56]}  Qxe5 {[%clk 0:01:27]} 20. Rxd7 {[%clk 0:01:55]}  Qxg5 {[%clk 0:01:21]} 21. Rxb7 {[%clk 0:01:55]}  Qf4 {[%clk 0:01:11]} 22. Rxf7 {[%clk 0:01:40]}  Kxf7 {[%clk 0:00:58]} 23. Qxe6+ {[%clk 0:01:37]}  Kf8 {[%clk 0:00:57]} 24. Qg8+ {[%clk 0:01:37]}  Ke7 {[%clk 0:00:58]} 25. Qxg7+ {[%clk 0:01:19]}  Kd6 {[%clk 0:00:52]} 26. Qxh7 {[%clk 0:01:15]}  Re8 {[%clk 0:00:47]} 27. Qd3+ {[%clk 0:01:12]}  Kc6 {[%clk 0:00:41]} 28. Bd5+ {[%clk 0:01:12]}  Kb6 {[%clk 0:00:42]} 29. g3 {[%clk 0:01:09]}  Qd6 {[%clk 0:00:27]} 30. Qd4+ {[%clk 0:01:04]}  Qc5 {[%clk 0:00:26]} 31. Qf6+ {[%clk 0:01:04]}  Ka5 {[%clk 0:00:24]} 32. Bxa8 {[%clk 0:00:58]}  Rxa8 {[%clk 0:00:23]} 33. a3 {[%clk 0:00:49]}  Qc4 {[%clk 0:00:20]} 0-1


[Site "https://www.chess.com"]

[Event "Titled Tuesday Blitz May 30 Early 2023"]
[White "Avazkhonov, Alikhon"]
[Black "Kiseljova, Marya"]
[WhiteFideId "14208504"]
[BlackFideId "4155009"]
[WhiteElo "1739"]
[BlackElo "1831"]
[Result "1-0"]
[Round "06"]
[TimeControl "180+2"]
[Date "2023.05.30"]
[WhiteClock "0:02:02"]
[BlackClock "0:00:03"]

1. d4 {[%clk 0:03:00]}  Nf6 {[%clk 0:02:57]} 2. c4 {[%clk 0:03:01]}  e6 {[%clk 0:02:57]} 3. Nc3 {[%clk 0:03:02]}  Bb4 {[%clk 0:02:57]} 4. e3 {[%clk 0:03:02]}  O-O {[%clk 0:02:55]} 5. Bd2 {[%clk 0:03:02]}  Re8 {[%clk 0:02:51]} 6. Nf3 {[%clk 0:03:01]}  d6 {[%clk 0:02:50]} 7. Bd3 {[%clk 0:03:01]}  e5 {[%clk 0:02:48]} 8. Be2 {[%clk 0:02:40]}  Qe7 {[%clk 0:02:29]} 9. a3 {[%clk 0:02:39]}  Bxc3 {[%clk 0:02:28]} 10. Bxc3 {[%clk 0:02:40]}  Bg4 {[%clk 0:02:16]} 11. O-O {[%clk 0:02:39]}  exd4 {[%clk 0:02:11]} 12. Qxd4 {[%clk 0:02:35]}  Nc6 {[%clk 0:02:08]} 13. Qf4 {[%clk 0:02:34]}  Bxf3 {[%clk 0:01:51]} 14. Bxf3 {[%clk 0:02:35]}  Ne5 {[%clk 0:01:51]} 15. Bxb7 {[%clk 0:02:31]}  Rab8 {[%clk 0:01:51]} 16. Bf3 {[%clk 0:02:32]}  Nd3 {[%clk 0:01:47]} 17. Qd4 {[%clk 0:02:32]}  Ne5 {[%clk 0:01:40]} 18. Be2 {[%clk 0:02:32]}  c5 {[%clk 0:01:26]} 19. Qd1 {[%clk 0:02:32]}  Ne4 {[%clk 0:01:26]} 20. Qc2 {[%clk 0:02:32]}  Nxc3 {[%clk 0:01:20]} 21. Qxc3 {[%clk 0:02:33]}  Qb7 {[%clk 0:01:06]} 22. Rab1 {[%clk 0:02:33]}  Re6 {[%clk 0:01:06]} 23. b4 {[%clk 0:02:33]}  Rg6 {[%clk 0:01:00]} 24. f3 {[%clk 0:02:31]}  Qc6 {[%clk 0:00:50]} 25. bxc5 {[%clk 0:02:30]}  Rxb1 {[%clk 0:00:41]} 26. Rxb1 {[%clk 0:02:31]}  h5 {[%clk 0:00:40]} 27. cxd6 {[%clk 0:02:10]}  Nxf3+ {[%clk 0:00:36]} 28. Bxf3 {[%clk 0:02:10]}  Qxf3 {[%clk 0:00:36]} 29. Qd2 {[%clk 0:02:11]}  Qc6 {[%clk 0:00:13]} 30. d7 {[%clk 0:02:11]}  Rd6 {[%clk 0:00:09]} 31. d8=Q+ {[%clk 0:02:09]}  Kh7 {[%clk 0:00:03]} 32. Q8xd6 {[%clk 0:02:02]} 1-0


[Site "https://www.chess.com"]

[Event "Titled Tuesday Blitz May 30 Early 2023"]
[White "Herzog2012"]
[Black "Lakshmi C"]
[BlackFideId "25035347"]
[WhiteElo "2389"]
[BlackElo "1942"]
[Result "1-0"]
[Round "06"]
[TimeControl "180+2"]
[Date "2023.05.30"]
[WhiteClock "0:01:04"]
[BlackClock "0:00:02"]

1. e4 {[%clk 0:03:00]}  b6 {[%clk 0:02:45]} 2. d4 {[%clk 0:02:59]}  d6 {[%clk 0:02:46]} 3. Nc3 {[%clk 0:02:54]}  Bb7 {[%clk 0:02:46]} 4. d5 {[%clk 0:02:51]}  c6 {[%clk 0:02:45]} 5. dxc6 {[%clk 0:02:50]}  Nxc6 {[%clk 0:02:45]} 6. Nf3 {[%clk 0:02:50]}  Nf6 {[%clk 0:02:38]} 7. Bb5 {[%clk 0:02:36]}  a6 {[%clk 0:02:34]} 8. Ba4 {[%clk 0:02:05]}  b5 {[%clk 0:02:19]} 9. Bb3 {[%clk 0:02:05]}  Na5 {[%clk 0:02:13]} 10. Qe2 {[%clk 0:01:50]}  Nxb3 {[%clk 0:01:47]} 11. axb3 {[%clk 0:01:48]}  Qc7 {[%clk 0:01:43]} 12. Bg5 {[%clk 0:01:44]}  h6 {[%clk 0:01:29]} 13. Bxf6 {[%clk 0:01:44]}  gxf6 {[%clk 0:01:28]} 14. Nd5 {[%clk 0:01:43]}  Qc5 {[%clk 0:01:25]} 15. b4 {[%clk 0:01:39]}  Qc4 {[%clk 0:00:32]} 16. Qxc4 {[%clk 0:01:36]}  bxc4 {[%clk 0:00:32]} 17. Nc7+ {[%clk 0:01:37]}  Kd7 {[%clk 0:00:28]} 18. Nxa8 {[%clk 0:01:38]}  Bxa8 {[%clk 0:00:28]} 19. Nd2 {[%clk 0:01:32]}  Bb7 {[%clk 0:00:22]} 20. Nxc4 {[%clk 0:01:22]}  Bg7 {[%clk 0:00:22]} 21. f3 {[%clk 0:01:18]}  Kc7 {[%clk 0:00:16]} 22. O-O {[%clk 0:01:12]}  e6 {[%clk 0:00:13]} 23. c3 {[%clk 0:01:11]}  d5 {[%clk 0:00:12]} 24. exd5 {[%clk 0:01:12]}  Bxd5 {[%clk 0:00:09]} 25. Ne3 {[%clk 0:01:10]}  Bb7 {[%clk 0:00:09]} 26. Rfd1 {[%clk 0:01:08]}  f5 {[%clk 0:00:09]} 27. Nc4 {[%clk 0:01:08]}  Bf8 {[%clk 0:00:06]} 28. Na5 {[%clk 0:01:07]}  Bc8 {[%clk 0:00:05]} 29. Rd4 {[%clk 0:01:04]}  Rg8 {[%clk 0:00:05]} 30. Rc4+ {[%clk 0:01:04]}  Kb6 {[%clk 0:00:02]} 31. Rc6+ {[%clk 0:01:04]} 1-0


[Site "https://www.chess.com"]